[Event "Titled Tuesday Blitz March 28 Early 2023"]
[White "Weetik, Vjacheslav"]
[Black "Kamsky, Gata"]
[WhiteFideId "4153472"]
[BlackFideId "2000024"]
[WhiteElo "2469"]
[BlackElo "2666"]
[Result "0-1"]
[Round "03"]
[TimeControl "180+2"]
[Date "2023.03.28"]
[WhiteClock "0:00:02"]
[BlackClock "0:00:07"]

1. d4 {[%clk 0:02:51]}  g6 {[%clk 0:02:57]} 2. e4 {[%clk 0:02:50]}  Bg7 {[%clk 0:02:57]} 3. Nf3 {[%clk 0:02:51]}  d6 {[%clk 0:02:56]} 4. Bc4 {[%clk 0:02:51]}  Nf6 {[%clk 0:02:56]} 5. Qe2 {[%clk 0:02:50]}  c6 {[%clk 0:02:51]} 6. Bb3 {[%clk 0:02:50]}  O-O {[%clk 0:02:47]} 7. O-O {[%clk 0:02:46]}  a5 {[%clk 0:02:46]} 8. e5 {[%clk 0:02:42]}  Nd5 {[%clk 0:02:44]} 9. a3 {[%clk 0:02:32]}  Na6 {[%clk 0:02:13]} 10. c4 {[%clk 0:02:25]}  Ndc7 {[%clk 0:02:11]} 11. h3 {[%clk 0:01:38]}  dxe5 {[%clk 0:01:55]} 12. dxe5 {[%clk 0:01:38]}  Nc5 {[%clk 0:01:46]} 13. Bc2 {[%clk 0:01:38]}  N7e6 {[%clk 0:01:39]} 14. Be3 {[%clk 0:01:35]}  a4 {[%clk 0:01:36]} 15. Nc3 {[%clk 0:01:36]}  Qa5 {[%clk 0:01:35]} 16. Rad1 {[%clk 0:01:23]}  b6 {[%clk 0:01:31]} 17. h4 {[%clk 0:01:10]}  h5 {[%clk 0:01:25]} 18. Rfe1 {[%clk 0:01:08]}  Ba6 {[%clk 0:01:21]} 19. Ng5 {[%clk 0:01:04]}  Rad8 {[%clk 0:00:59]} 20. g4 {[%clk 0:00:59]}  hxg4 {[%clk 0:00:34]} 21. Qxg4 {[%clk 0:00:35]}  Nxg5 {[%clk 0:00:27]} 22. Qxg5 {[%clk 0:00:25]}  Ne6 {[%clk 0:00:21]} 23. Qg4 {[%clk 0:00:16]}  Rxd1 {[%clk 0:00:19]} 24. Rxd1 {[%clk 0:00:17]}  Qxe5 {[%clk 0:00:19]} 25. Nxa4 {[%clk 0:00:13]}  b5 {[%clk 0:00:18]} 26. cxb5 {[%clk 0:00:10]}  cxb5 {[%clk 0:00:19]} 27. Nc3 {[%clk 0:00:11]}  Bb7 {[%clk 0:00:19]} 28. Be4 {[%clk 0:00:11]}  Bxe4 {[%clk 0:00:18]} 29. Qxe4 {[%clk 0:00:11]}  Qxe4 {[%clk 0:00:18]} 30. Nxe4 {[%clk 0:00:12]}  Bxb2 {[%clk 0:00:19]} 31. Rb1 {[%clk 0:00:12]}  Bxa3 {[%clk 0:00:19]} 32. Rxb5 {[%clk 0:00:13]}  Rc8 {[%clk 0:00:19]} 33. h5 {[%clk 0:00:12]}  gxh5 {[%clk 0:00:18]} 34. Rxh5 {[%clk 0:00:13]}  f6 {[%clk 0:00:18]} 35. Ra5 {[%clk 0:00:13]}  Bb4 {[%clk 0:00:17]} 36. Rb5 {[%clk 0:00:12]}  Bc3 {[%clk 0:00:17]} 37. Rb7 {[%clk 0:00:11]}  Kf8 {[%clk 0:00:14]} 38. Bh6+ {[%clk 0:00:11]}  Ke8 {[%clk 0:00:14]} 39. Be3 {[%clk 0:00:12]}  Be5 {[%clk 0:00:14]} 40. Kg2 {[%clk 0:00:12]}  Kf7 {[%clk 0:00:13]} 41. Kf3 {[%clk 0:00:09]}  f5 {[%clk 0:00:12]} 42. Ng5+ {[%clk 0:00:07]}  Nxg5+ {[%clk 0:00:13]} 43. Bxg5 {[%clk 0:00:08]}  Rc3+ {[%clk 0:00:13]} 44. Kg2 {[%clk 0:00:07]}  Bd6 {[%clk 0:00:13]} 45. Be3 {[%clk 0:00:07]}  Ke6 {[%clk 0:00:13]} 46. Rb6 {[%clk 0:00:07]}  Kd5 {[%clk 0:00:13]} 47. Rb5+ {[%clk 0:00:07]}  Ke4 {[%clk 0:00:13]} 48. Rb7 {[%clk 0:00:06]}  f4 {[%clk 0:00:13]} 49. Ba7 {[%clk 0:00:07]}  f3+ {[%clk 0:00:13]} 50. Kh3 {[%clk 0:00:07]}  Rc1 {[%clk 0:00:12]} 51. Be3 {[%clk 0:00:03]}  Re1 {[%clk 0:00:11]} 52. Rb3 {[%clk 0:00:03]}  Rh1+ {[%clk 0:00:10]} 53. Kg4 {[%clk 0:00:03]}  Rg1+ {[%clk 0:00:11]} 54. Kh3 {[%clk 0:00:04]}  e5 {[%clk 0:00:10]} 55. Rc3 {[%clk 0:00:03]}  Be7 {[%clk 0:00:09]} 56. Rc7 {[%clk 0:00:02]}  Bg5 {[%clk 0:00:07]} 57. Rg7 {[%clk 0:00:02]}  Rh1+ {[%clk 0:00:07]} 58. Kg4 {[%clk 0:00:02]}  Bxe3 {[%clk 0:00:07]} 0-1


[Site "https://www.chess.com"]

[Event "Titled Tuesday Blitz March 28 Early 2023"]
[White "Kovalenko, Igor"]
[Black "Harshavardhan G B"]
[WhiteFideId "14117908"]
[BlackFideId "25059009"]
[WhiteElo "2574"]
[BlackElo "2323"]
[Result "0-1"]
[Round "03"]
[TimeControl "180+2"]
[Date "2023.03.28"]
[WhiteClock "0:00:04"]
[BlackClock "0:00:09"]

1. c4 {[%clk 0:01:56]}  Nf6 {[%clk 0:02:49]} 2. Nc3 {[%clk 0:01:54]}  e5 {[%clk 0:02:43]} 3. Nf3 {[%clk 0:01:54]}  Nc6 {[%clk 0:02:41]} 4. g3 {[%clk 0:01:53]}  d5 {[%clk 0:02:38]} 5. cxd5 {[%clk 0:01:51]}  Nxd5 {[%clk 0:02:39]} 6. Bg2 {[%clk 0:01:51]}  Nb6 {[%clk 0:02:38]} 7. O-O {[%clk 0:01:51]}  Be7 {[%clk 0:02:36]} 8. a3 {[%clk 0:01:50]}  g5 {[%clk 0:02:33]} 9. b4 {[%clk 0:01:48]}  g4 {[%clk 0:02:31]} 10. Ne1 {[%clk 0:01:47]}  h5 {[%clk 0:02:28]} 11. b5 {[%clk 0:01:47]}  Nd4 {[%clk 0:02:27]} 12. e3 {[%clk 0:01:47]}  Ne6 {[%clk 0:02:25]} 13. Qc2 {[%clk 0:01:37]}  h4 {[%clk 0:02:21]} 14. a4 {[%clk 0:01:29]}  Rb8 {[%clk 0:02:05]} 15. a5 {[%clk 0:01:27]}  Nd7 {[%clk 0:02:03]} 16. Nd3 {[%clk 0:01:18]}  f5 {[%clk 0:01:49]} 17. Nd5 {[%clk 0:01:15]}  Bd6 {[%clk 0:01:42]} 18. Bb2 {[%clk 0:01:14]}  Qg5 {[%clk 0:01:40]} 19. b6 {[%clk 0:01:02]}  axb6 {[%clk 0:01:33]} 20. axb6 {[%clk 0:01:02]}  c6 {[%clk 0:01:33]} 21. Nc7+ {[%clk 0:00:59]}  Nxc7 {[%clk 0:01:28]} 22. bxc7 {[%clk 0:01:00]}  Bxc7 {[%clk 0:01:29]} 23. Qc4 {[%clk 0:00:38]}  Qh6 {[%clk 0:01:24]} 24. Rfb1 {[%clk 0:00:20]}  hxg3 {[%clk 0:01:19]} 25. hxg3 {[%clk 0:00:21]}  b5 {[%clk 0:00:45]} 26. Qxc6 {[%clk 0:00:20]}  Bb7 {[%clk 0:00:45]} 27. Qxh6 {[%clk 0:00:19]}  Rxh6 {[%clk 0:00:45]} 28. Bxb7 {[%clk 0:00:18]}  Rxb7 {[%clk 0:00:46]} 29. Bc3 {[%clk 0:00:16]}  Kf7 {[%clk 0:00:30]} 30. Kg2 {[%clk 0:00:15]}  e4 {[%clk 0:00:24]} 31. Nb4 {[%clk 0:00:11]}  Nb6 {[%clk 0:00:21]} 32. Ra6 {[%clk 0:00:09]}  Re6 {[%clk 0:00:15]} 33. Rh1 {[%clk 0:00:07]}  Be5 {[%clk 0:00:13]} 34. Rh7+ {[%clk 0:00:05]}  Kg8 {[%clk 0:00:10]} 35. Rxb7 {[%clk 0:00:04]}  Bxc3 {[%clk 0:00:11]} 36. Ra8+ {[%clk 0:00:04]}  Nxa8 {[%clk 0:00:09]} 0-1


[Site "https://www.chess.com"]

[Event "Titled Tuesday Blitz March 28 Early 2023"]
[White "Xu, Xiangyu"]
[Black "Iniyan, P"]
[WhiteFideId "8608288"]
[BlackFideId "25002767"]
[WhiteElo "2477"]
[BlackElo "2449"]
[Result "1-0"]
[Round "03"]
[TimeControl "180+2"]
[Date "2023.03.28"]
[WhiteClock "0:00:14"]
[BlackClock "0:00:03"]

1. d4 {[%clk 0:03:00]}  Nf6 {[%clk 0:02:58]} 2. Bg5 {[%clk 0:03:00]}  Ne4 {[%clk 0:02:55]} 3. Bf4 {[%clk 0:02:59]}  d5 {[%clk 0:02:56]} 4. e3 {[%clk 0:03:00]}  c5 {[%clk 0:02:53]} 5. Bd3 {[%clk 0:03:00]}  Nc6 {[%clk 0:02:51]} 6. Bxe4 {[%clk 0:03:00]}  dxe4 {[%clk 0:02:51]} 7. d5 {[%clk 0:03:00]}  Nb4 {[%clk 0:02:42]} 8. Nc3 {[%clk 0:03:00]}  e6 {[%clk 0:02:42]} 9. d6 {[%clk 0:02:58]}  Qa5 {[%clk 0:02:09]} 10. Nge2 {[%clk 0:02:58]}  Nd5 {[%clk 0:02:04]} 11. O-O {[%clk 0:02:57]}  Nxf4 {[%clk 0:01:33]} 12. Nxf4 {[%clk 0:02:58]}  Bd7 {[%clk 0:01:34]} 13. Nxe4 {[%clk 0:02:51]}  Bc6 {[%clk 0:01:32]} 14. Ng5 {[%clk 0:02:45]}  Qd8 {[%clk 0:01:23]} 15. Qg4 {[%clk 0:02:36]}  Qxd6 {[%clk 0:01:05]} 16. Rad1 {[%clk 0:02:27]}  Qe7 {[%clk 0:00:37]} 17. Rd2 {[%clk 0:02:13]}  g6 {[%clk 0:00:35]} 18. Rfd1 {[%clk 0:01:55]}  Bg7 {[%clk 0:00:35]} 19. Nfxe6 {[%clk 0:01:01]}  fxe6 {[%clk 0:00:36]} 20. Nxe6 {[%clk 0:01:02]}  Bf6 {[%clk 0:00:36]} 21. Rd6 {[%clk 0:00:52]}  Be5 {[%clk 0:00:22]} 22. R6d2 {[%clk 0:00:51]}  Kf7 {[%clk 0:00:07]} 23. Ng5+ {[%clk 0:00:49]}  Kf6 {[%clk 0:00:07]} 24. Rd7 {[%clk 0:00:42]}  h5 {[%clk 0:00:05]} 25. Qh3 {[%clk 0:00:23]}  Qe8 {[%clk 0:00:05]} 26. f4 {[%clk 0:00:16]}  Bxf4 {[%clk 0:00:04]} 27. exf4 {[%clk 0:00:15]}  Bxd7 {[%clk 0:00:05]} 28. Qc3+ {[%clk 0:00:16]}  Kf5 {[%clk 0:00:04]} 29. Rd5+ {[%clk 0:00:14]}  Kxf4 {[%clk 0:00:03]} 30. Qf3# {[%clk 0:00:14]} 1-0


[Site "https://www.chess.com"]

[Event "Titled Tuesday Blitz March 28 Early 2023"]
[White "Gukesh D"]
[Black "Santos Ruiz, Miguel"]
[WhiteFideId "46616543"]
[BlackFideId "22291482"]
[WhiteElo "2612"]
[BlackElo "2504"]
[Result "0-1"]
[Round "03"]
[TimeControl "180+2"]
[Date "2023.03.28"]
[WhiteClock "0:00:04"]
[BlackClock "0:00:10"]

1. Nf3 {[%clk 0:03:00]}  d5 {[%clk 0:02:59]} 2. e3 {[%clk 0:03:01]}  Nf6 {[%clk 0:02:55]} 3. c4 {[%clk 0:03:01]}  e6 {[%clk 0:02:56]} 4. Nc3 {[%clk 0:03:00]}  b6 {[%clk 0:02:53]} 5. cxd5 {[%clk 0:03:00]}  exd5 {[%clk 0:02:54]} 6. g3 {[%clk 0:03:00]}  Bb7 {[%clk 0:02:53]} 7. Bg2 {[%clk 0:03:00]}  Nbd7 {[%clk 0:02:46]} 8. O-O {[%clk 0:02:58]}  a6 {[%clk 0:02:42]} 9. b3 {[%clk 0:02:58]}  Bd6 {[%clk 0:02:42]} 10. Bb2 {[%clk 0:02:58]}  Qe7 {[%clk 0:02:41]} 11. Nh4 {[%clk 0:02:39]}  Qe6 {[%clk 0:02:35]} 12. Ne2 {[%clk 0:02:38]}  c5 {[%clk 0:02:23]} 13. Nf4 {[%clk 0:02:31]}  Bxf4 {[%clk 0:02:22]} 14. exf4 {[%clk 0:02:31]}  O-O {[%clk 0:01:52]} 15. Re1 {[%clk 0:02:30]}  Qc6 {[%clk 0:01:48]} 16. Nf5 {[%clk 0:02:24]}  Qc7 {[%clk 0:01:46]} 17. d4 {[%clk 0:01:47]}  Rfe8 {[%clk 0:01:27]} 18. dxc5 {[%clk 0:01:43]}  Rxe1+ {[%clk 0:01:20]} 19. Qxe1 {[%clk 0:01:42]}  bxc5 {[%clk 0:01:19]} 20. Qe7 {[%clk 0:01:23]}  d4 {[%clk 0:00:49]} 21. Bxb7 {[%clk 0:01:17]}  Qxb7 {[%clk 0:00:50]} 22. Qxf7+ {[%clk 0:01:17]}  Kxf7 {[%clk 0:00:50]} 23. Nd6+ {[%clk 0:01:17]}  Ke6 {[%clk 0:00:46]} 24. Nxb7 {[%clk 0:01:17]}  a5 {[%clk 0:00:44]} 25. Rc1 {[%clk 0:01:11]}  Kd5 {[%clk 0:00:41]} 26. Rc4 {[%clk 0:00:47]}  Ra7 {[%clk 0:00:24]} 27. Nxc5 {[%clk 0:00:29]}  Nxc5 {[%clk 0:00:23]} 28. Bxd4 {[%clk 0:00:26]}  Rc7 {[%clk 0:00:22]} 29. Bc3 {[%clk 0:00:17]}  a4 {[%clk 0:00:18]} 30. Be5 {[%clk 0:00:17]}  axb3 {[%clk 0:00:14]} 31. axb3 {[%clk 0:00:18]}  Rb7 {[%clk 0:00:13]} 32. Rd4+ {[%clk 0:00:17]}  Ke6 {[%clk 0:00:13]} 33. b4 {[%clk 0:00:18]}  Nb3 {[%clk 0:00:10]} 34. Rc4 {[%clk 0:00:14]}  Nd2 {[%clk 0:00:10]} 35. Rc6+ {[%clk 0:00:14]}  Ke7 {[%clk 0:00:09]} 36. Kg2 {[%clk 0:00:11]}  Nde4 {[%clk 0:00:09]} 37. f3 {[%clk 0:00:09]}  Nd2 {[%clk 0:00:10]} 38. f5 {[%clk 0:00:09]}  Nb3 {[%clk 0:00:08]} 39. g4 {[%clk 0:00:08]}  Ne8 {[%clk 0:00:08]} 40. Rc4 {[%clk 0:00:07]}  Nd2 {[%clk 0:00:08]} 41. Rd4 {[%clk 0:00:07]}  Nb3 {[%clk 0:00:08]} 42. Re4 {[%clk 0:00:06]}  Kf7 {[%clk 0:00:06]} 43. Bc3 {[%clk 0:00:05]}  Rc7 {[%clk 0:00:06]} 44. Re3 {[%clk 0:00:05]}  Rc4 {[%clk 0:00:06]} 45. Be1 {[%clk 0:00:05]}  Nc1 {[%clk 0:00:07]} 46. Kg3 {[%clk 0:00:05]}  Rc2 {[%clk 0:00:07]} 47. b5 {[%clk 0:00:04]}  Ne2+ {[%clk 0:00:08]} 48. Kh4 {[%clk 0:00:05]}  Nf4 {[%clk 0:00:08]} 49. Bg3 {[%clk 0:00:04]}  Ng2+ {[%clk 0:00:08]} 50. Kh3 {[%clk 0:00:04]}  Nxe3 {[%clk 0:00:09]} 51. b6 {[%clk 0:00:04]}  Rb2 {[%clk 0:00:10]} 52. Bf4 {[%clk 0:00:04]}  Nd5 {[%clk 0:00:10]} 0-1


[Site "https://www.chess.com"]

[Event "Titled Tuesday Blitz March 28 Early 2023"]
[White "Dardha, Daniel"]
[Black "Cherniaiev, Tykhon"]
[WhiteFideId "240990"]
[BlackFideId "14182360"]
[WhiteElo "2581"]
[BlackElo "2450"]
[Result "1-0"]
[Round "03"]
[TimeControl "180+2"]
[Date "2023.03.28"]
[WhiteClock "0:00:22"]
[BlackClock "0:00:08"]

1. e4 {[%clk 0:02:56]}  e5 {[%clk 0:02:57]} 2. Qg4 {[%clk 0:02:54]}  d5 {[%clk 0:02:50]} 3. Qg3 {[%clk 0:02:53]}  Nc6 {[%clk 0:02:41]} 4. Bb5 {[%clk 0:02:53]}  dxe4 {[%clk 0:02:28]} 5. Qxe5+ {[%clk 0:02:52]}  Be6 {[%clk 0:02:28]} 6. Qxe4 {[%clk 0:02:47]}  Qd6 {[%clk 0:02:24]} 7. Bxc6+ {[%clk 0:02:42]}  bxc6 {[%clk 0:02:24]} 8. Nf3 {[%clk 0:02:41]}  Nf6 {[%clk 0:02:23]} 9. Qe2 {[%clk 0:02:37]}  Be7 {[%clk 0:02:21]} 10. O-O {[%clk 0:02:35]}  O-O {[%clk 0:02:21]} 11. d3 {[%clk 0:02:35]}  Rfe8 {[%clk 0:02:18]} 12. h3 {[%clk 0:02:31]}  Bf8 {[%clk 0:02:16]} 13. Qd1 {[%clk 0:02:31]}  c5 {[%clk 0:02:15]} 14. Nc3 {[%clk 0:02:26]}  h6 {[%clk 0:02:02]} 15. Be3 {[%clk 0:02:21]}  Qc6 {[%clk 0:01:47]} 16. Re1 {[%clk 0:02:19]}  Rad8 {[%clk 0:01:41]} 17. Nd2 {[%clk 0:01:54]}  c4 {[%clk 0:01:27]} 18. dxc4 {[%clk 0:01:49]}  Bxc4 {[%clk 0:01:28]} 19. Qf3 {[%clk 0:01:47]}  Qxf3 {[%clk 0:01:16]} 20. Nxf3 {[%clk 0:01:48]}  a5 {[%clk 0:01:17]} 21. Red1 {[%clk 0:01:37]}  Bb4 {[%clk 0:01:11]} 22. Bd4 {[%clk 0:01:32]}  Nd5 {[%clk 0:00:45]} 23. Nxd5 {[%clk 0:01:22]}  Bxd5 {[%clk 0:00:46]} 24. Be3 {[%clk 0:01:13]}  c6 {[%clk 0:00:43]} 25. Nd4 {[%clk 0:01:11]}  Bc5 {[%clk 0:00:30]} 26. Nxc6 {[%clk 0:01:05]}  Bxc6 {[%clk 0:00:31]} 27. Bxc5 {[%clk 0:01:02]}  Rxd1+ {[%clk 0:00:31]} 28. Rxd1 {[%clk 0:01:03]}  Re2 {[%clk 0:00:31]} 29. Rd6 {[%clk 0:00:37]}  Be4 {[%clk 0:00:29]} 30. Rd8+ {[%clk 0:00:37]}  Kh7 {[%clk 0:00:29]} 31. Re8 {[%clk 0:00:38]}  Rxc2 {[%clk 0:00:24]} 32. Rxe4 {[%clk 0:00:37]}  Rxc5 {[%clk 0:00:25]} 33. Ra4 {[%clk 0:00:37]}  Rc2 {[%clk 0:00:15]} 34. b3 {[%clk 0:00:34]}  Rc1+ {[%clk 0:00:15]} 35. Kh2 {[%clk 0:00:34]}  Rc5 {[%clk 0:00:16]} 36. Kg3 {[%clk 0:00:35]}  g5 {[%clk 0:00:16]} 37. Kf3 {[%clk 0:00:33]}  Re5 {[%clk 0:00:16]} 38. Re4 {[%clk 0:00:29]}  Rc5 {[%clk 0:00:16]} 39. Rc4 {[%clk 0:00:29]}  Re5 {[%clk 0:00:16]} 40. g4 {[%clk 0:00:23]}  Kg6 {[%clk 0:00:16]} 41. Rc6+ {[%clk 0:00:22]}  f6 {[%clk 0:00:16]} 42. Ra6 {[%clk 0:00:22]}  Kg7 {[%clk 0:00:14]} 43. a4 {[%clk 0:00:20]}  Kg6 {[%clk 0:00:14]} 44. Rb6 {[%clk 0:00:20]}  Re7 {[%clk 0:00:07]} 45. Rb5 {[%clk 0:00:20]}  Ra7 {[%clk 0:00:07]} 46. Ke4 {[%clk 0:00:20]}  Re7+ {[%clk 0:00:07]} 47. Kd4 {[%clk 0:00:20]}  Rd7+ {[%clk 0:00:05]} 48. Rd5 {[%clk 0:00:20]}  Rb7 {[%clk 0:00:05]} 49. Kc4 {[%clk 0:00:20]}  Rb4+ {[%clk 0:00:04]} 50. Kc3 {[%clk 0:00:20]}  Rf4 {[%clk 0:00:05]} 51. Rxa5 {[%clk 0:00:21]}  Rxf2 {[%clk 0:00:05]} 52. Rd5 {[%clk 0:00:21]}  Rf1 {[%clk 0:00:04]} 53. a5 {[%clk 0:00:21]}  Rc1+ {[%clk 0:00:04]} 54. Kb2 {[%clk 0:00:21]}  Rh1 {[%clk 0:00:04]} 55. a6 {[%clk 0:00:21]}  Re1 {[%clk 0:00:03]} 56. a7 {[%clk 0:00:20]}  Re8 {[%clk 0:00:03]} 57. Ra5 {[%clk 0:00:20]}  Ra8 {[%clk 0:00:04]} 58. b4 {[%clk 0:00:19]}  h5 {[%clk 0:00:04]} 59. b5 {[%clk 0:00:19]}  hxg4 {[%clk 0:00:04]} 60. hxg4 {[%clk 0:00:20]}  Kf7 {[%clk 0:00:05]} 61. b6 {[%clk 0:00:21]}  Ke7 {[%clk 0:00:06]} 62. b7 {[%clk 0:00:21]}  Rxa7 {[%clk 0:00:07]} 63. Rxa7 {[%clk 0:00:22]}  Kd8 {[%clk 0:00:08]} 64. b8=Q# {[%clk 0:00:22]} 1-0


[Site "https://www.chess.com"]

[Event "Titled Tuesday Blitz March 28 Early 2023"]
[White "Moroni, Luca Jr"]
[Black "Tatarinov, Dmitry"]
[WhiteFideId "865834"]
[BlackFideId "24160067"]
[WhiteElo "2569"]
[BlackElo "2326"]
[Result "1-0"]
[Round "03"]
[TimeControl "180+2"]
[Date "2023.03.28"]
[WhiteClock "0:00:37"]
[BlackClock "0:00:59"]

1. d4 {[%clk 0:03:00]}  Nf6 {[%clk 0:03:00]} 2. Bf4 {[%clk 0:03:00]}  d6 {[%clk 0:03:00]} 3. Nf3 {[%clk 0:03:00]}  g6 {[%clk 0:03:00]} 4. Nc3 {[%clk 0:03:00]}  Bf5 {[%clk 0:02:55]} 5. Nd2 {[%clk 0:02:51]}  d5 {[%clk 0:02:47]} 6. e3 {[%clk 0:02:48]}  Bg7 {[%clk 0:02:46]} 7. h3 {[%clk 0:02:47]}  O-O {[%clk 0:02:46]} 8. Nf3 {[%clk 0:02:47]}  Ne4 {[%clk 0:02:44]} 9. Bd3 {[%clk 0:02:42]}  Nxc3 {[%clk 0:02:44]} 10. bxc3 {[%clk 0:02:43]}  Bxd3 {[%clk 0:02:36]} 11. cxd3 {[%clk 0:02:42]}  c5 {[%clk 0:02:34]} 12. O-O {[%clk 0:02:40]}  cxd4 {[%clk 0:02:34]} 13. cxd4 {[%clk 0:02:40]}  Nc6 {[%clk 0:02:34]} 14. Qb3 {[%clk 0:02:38]}  b6 {[%clk 0:02:34]} 15. Rfc1 {[%clk 0:02:36]}  Rc8 {[%clk 0:02:34]} 16. Qa4 {[%clk 0:02:34]}  Qd7 {[%clk 0:02:22]} 17. Rc2 {[%clk 0:02:23]}  e5 {[%clk 0:02:07]} 18. dxe5 {[%clk 0:02:17]}  Nxe5 {[%clk 0:02:07]} 19. Qxd7 {[%clk 0:02:17]}  Nxd7 {[%clk 0:02:08]} 20. Rac1 {[%clk 0:02:16]}  Rxc2 {[%clk 0:02:08]} 21. Rxc2 {[%clk 0:02:16]}  Nc5 {[%clk 0:02:06]} 22. Bd6 {[%clk 0:02:10]}  Rd8 {[%clk 0:02:02]} 23. Bxc5 {[%clk 0:02:03]}  Rc8 {[%clk 0:01:57]} 24. d4 {[%clk 0:02:02]}  bxc5 {[%clk 0:01:57]} 25. Rxc5 {[%clk 0:02:00]}  Rxc5 {[%clk 0:01:58]} 26. dxc5 {[%clk 0:02:01]}  Kf8 {[%clk 0:01:58]} 27. Kf1 {[%clk 0:01:56]}  Ke7 {[%clk 0:01:58]} 28. Ke2 {[%clk 0:01:55]}  Kd7 {[%clk 0:01:58]} 29. Nd4 {[%clk 0:01:55]}  Bf8 {[%clk 0:01:58]} 30. c6+ {[%clk 0:01:45]}  Kc7 {[%clk 0:01:58]} 31. Kd3 {[%clk 0:01:44]}  a6 {[%clk 0:01:55]} 32. g4 {[%clk 0:01:42]}  Be7 {[%clk 0:01:50]} 33. f4 {[%clk 0:01:39]}  h6 {[%clk 0:01:45]} 34. Nf3 {[%clk 0:01:37]}  Bf6 {[%clk 0:01:42]} 35. Ne5 {[%clk 0:01:09]}  Bxe5 {[%clk 0:01:41]} 36. fxe5 {[%clk 0:01:10]}  Kb6 {[%clk 0:01:39]} 37. h4 {[%clk 0:00:55]}  Kc7 {[%clk 0:01:27]} 38. Kd4 {[%clk 0:00:44]}  Kxc6 {[%clk 0:01:27]} 39. a3 {[%clk 0:00:44]}  h5 {[%clk 0:01:00]} 40. g5 {[%clk 0:00:42]}  Kc7 {[%clk 0:01:01]} 41. Kxd5 {[%clk 0:00:41]}  Kd7 {[%clk 0:01:01]} 42. e6+ {[%clk 0:00:36]}  fxe6+ {[%clk 0:01:01]} 43. Ke5 {[%clk 0:00:37]}  Ke7 {[%clk 0:01:01]} 44. e4 {[%clk 0:00:37]}  a5 {[%clk 0:00:59]} 45. a4 {[%clk 0:00:37]} 1-0


[Site "https://www.chess.com"]

[Event "Titled Tuesday Blitz March 28 Early 2023"]
[White "Deac, Bogdan-Daniel"]
[Black "Malek, Jan"]
[WhiteFideId "1226380"]
[BlackFideId "21864080"]
[WhiteElo "2649"]
[BlackElo "2255"]
[Result "1-0"]
[Round "03"]
[TimeControl "180+2"]
[Date "2023.03.28"]
[WhiteClock "0:00:28"]
[BlackClock "0:00:04"]

1. b3 {[%clk 0:03:00]}  Nf6 {[%clk 0:02:55]} 2. Bb2 {[%clk 0:03:01]}  g6 {[%clk 0:02:56]} 3. Nf3 {[%clk 0:03:00]}  Bg7 {[%clk 0:02:57]} 4. g3 {[%clk 0:03:01]}  O-O {[%clk 0:02:57]} 5. Bg2 {[%clk 0:03:01]}  c5 {[%clk 0:02:57]} 6. c4 {[%clk 0:03:01]}  Nc6 {[%clk 0:02:56]} 7. O-O {[%clk 0:03:02]}  d6 {[%clk 0:02:49]} 8. d4 {[%clk 0:03:01]}  Bg4 {[%clk 0:02:35]} 9. d5 {[%clk 0:02:58]}  Bxf3 {[%clk 0:02:32]} 10. Bxf3 {[%clk 0:02:49]}  Nd4 {[%clk 0:02:23]} 11. Bg2 {[%clk 0:02:48]}  Nd7 {[%clk 0:02:23]} 12. Nc3 {[%clk 0:02:41]}  Qa5 {[%clk 0:02:20]} 13. Rc1 {[%clk 0:02:38]}  b5 {[%clk 0:01:56]} 14. e3 {[%clk 0:02:31]}  bxc4 {[%clk 0:01:53]} 15. exd4 {[%clk 0:01:56]}  cxd4 {[%clk 0:01:54]} 16. Ne2 {[%clk 0:01:54]}  c3 {[%clk 0:01:49]} 17. Ba1 {[%clk 0:01:53]}  Qb6 {[%clk 0:01:21]} 18. Re1 {[%clk 0:01:49]}  Rac8 {[%clk 0:00:53]} 19. Bh3 {[%clk 0:01:46]}  f5 {[%clk 0:00:48]} 20. Nf4 {[%clk 0:01:43]}  Rfe8 {[%clk 0:00:40]} 21. Ne6 {[%clk 0:01:37]}  Bf6 {[%clk 0:00:40]} 22. Bf1 {[%clk 0:01:35]}  Nc5 {[%clk 0:00:36]} 23. Nxd4 {[%clk 0:01:17]}  Ne4 {[%clk 0:00:35]} 24. Rxe4 {[%clk 0:01:16]}  fxe4 {[%clk 0:00:35]} 25. Nc6 {[%clk 0:01:14]}  Rxc6 {[%clk 0:00:20]} 26. dxc6 {[%clk 0:01:13]}  Qxc6 {[%clk 0:00:21]} 27. Rxc3 {[%clk 0:00:42]}  Bxc3 {[%clk 0:00:20]} 28. Bc4+ {[%clk 0:00:42]}  e6 {[%clk 0:00:11]} 29. Bxc3 {[%clk 0:00:42]}  Qc5 {[%clk 0:00:04]} 30. Bd4 {[%clk 0:00:28]}  Qxd4 {[%clk 0:00:04]} 31. Qxd4 {[%clk 0:00:28]} 1-0


[Site "https://www.chess.com"]